{"text_format":"1","workbook":"xlsx","n_sheets":41,"sheets":["Summary","Paper 1","Pap1Ans","Paper 2","Paper 3","Paper 4","Paper 5","Paper 6","Paper 7","Paper 8","Paper 9","Paper 10","Paper 11","Paper 12","Paper 13","Paper 14","Paper 15","Paper 16","Paper 17","Paper 18","Paper 19","Paper 20","Pap2Ans","Pap3Ans","Pap4Ans","Pap5Ans","Pap6Ans","Pap7Ans","Pap8Ans","Pap9Ans","Pap10Ans","Pap11Ans","Pap12Ans","Pap13Ans","Pap14Ans","Pap15Ans","Pap16Ans","Pap17Ans","Pap18Ans","Pap19Ans","Pap20Ans"],"not_rendered":{"charts":0,"images":133,"macros":1,"external_links":0,"defined_names":0,"comments":0,"pivot_tables":0},"unopened":[],"bounds":{"document_bytes":16777216,"sheet_cells":100000,"rows_first":2000,"rows_last":500,"rows_between":2000,"halvings":0,"cell_chars":16384,"cell_head_chars":4096},"cells_cut":0,"cells_raw":0,"read":"whole","date_system":"1900"}

{"sheet":"Summary","index":0,"n_rows":19,"n_cols":15,"rows_kept":19,"cut":false,"hidden":false,"merged":[[0,2,4,19],[18,8,18,13],[6,0,26,5]]}
[null,null,"Nursing  and Midwifery Drug Calculation Practice Papers"]
[]
[]
[]
[]
[]
["Welcome to the practice tests for Nursing Drug calculations.  These 10 papers are for anybody to use as often as they like.  All of the questions have been set up for general nursing but the calculations will be the same for all nursing.\n\nPlease remember when you look at the working for any of the questions, this is my method of working, its not the only way or the \"right\" way.  If you use a different way of working but still get the correct answer that is fine."]
[null,null,null,null,null,null,null,null,null,{"$f":"'Paper 1'!Q14","v":0},null,null,{"$f":"'Paper 6'!Q14","v":0}]
[]
[null,null,null,null,null,null,null,null,null,{"$f":"'Paper 2'!Q14","v":0},null,null,{"$f":"'Paper 7'!Q14","v":0}]
[]
[null,null,null,null,null,null,null,null,null,{"$f":"'Paper 3'!Q14","v":0},null,null,{"$f":"'Paper 8'!Q14","v":0}]
[]
[null,null,null,null,null,null,null,null,null,{"$f":"'Paper 4'!Q14","v":0},null,null,{"$f":"'Paper 9'!Q14","v":0}]
[]
[null,null,null,null,null,null,null,null,null,{"$f":"'Paper 5'!Q14","v":0},null,null,{"$f":"'Paper 10'!Q14","v":0}]
[]
[]
[null,null,null,null,null,null,null,null,"Average mark of papers attempted",null,null,null,null,null,0]

{"sheet":"Paper 1","index":1,"n_rows":14,"n_cols":19,"rows_kept":14,"cut":false,"hidden":false,"merged":[[11,1,11,12],[0,3,0,23],[7,1,7,12],[8,1,8,12],[9,1,9,12],[10,1,10,12],[2,1,2,12],[3,1,3,12],[4,1,4,12],[5,1,5,12],[6,1,6,12],[0,0,0,1]]}
[null,null,null,"Drug Calculations Practice Paper 1"]
[]
[null,"1.) A patient is prescribed Morphine Sulphate slow release tablets 110mg b.d. stock available is 55mg.  How many tablets will you give per dose?",null,null,null,null,null,null,null,null,null,null,null,null," ",null," ",null," "]
[null,"2.) A patient is prescribed Tramadol 95mg t.d.s.  What is the total amount of Tramadol expressed in grams that the patient will receive in a day?",null,null,null,null,null,null,null,null,null,null,null,null," ",null," ",null," "]
[null,"3.) The drug Amphotericin B is prescribed for a systemetic fungal infection for patient X.  The dose prescribed is 1.7mg/kg.  Patient X weighs 78kg.  What is the dose of Amphotericin B required, in mg?",null,null,null,null,null,null,null,null,null,null,null,null," ",null," ",null," "]
[null,"4.) The chemotherapy drug Chlorambucil is prescribed daily at 80micrograms/kg/day.  Patient A weighs 65kg, what is the total amount of Chlorambucil that patient A will receive?",null,null,null,null,null,null,null,null,null,null,null,null," ",null," ",null," "]
[null,"5.) Patient Q is prescribed Maxalon high dose 280mg to be added to 500mL Normal Saline 0.9% solution as an infusion to run over 12 hours for severe nausea and vomiting.  Stock available of Maxalon is 50mg/10mL.  How much Maxalon in mL will you need to add to the bag of Normal Saline?",null,null,null,null,null,null,null,null,null,null,null,null," ",null," ",null," "]
[null,"6.)  Patient Y is prescribed Furosemide 45mg i.v. to be added to 50mL of Normal Saline 0.9%.  Stock of Furosemide available is 50mg/5mL.  How many mL of Furosemide will you need to add to the bag of Normal Saline?",null,null,null,null,null,null,null,null,null,null,null,null," ",null," ",null," "]
[null,"7.)  Mr Khan is prescribed half a litre of Hartmann's solution to run over 3 hours using a volumetric pump.  At what rate will you set the pump?  Give your answer to 1 decimal place.",null,null,null,null,null,null,null,null,null,null,null,null," ",null," ",null," "]
[null,"8.)  Mrs Brown has been prescribed 1 unit of whole blood 250mL, to be infused over 3 hours using a blood giving set that delivers 15 drops/mL.  At what drop rate will you set the transfusion at?  Give your answer to the nearest whole drop.",null,null,null,null,null,null,null,null,null,null,null,null," ",null," ",null," "]
[null,"9.)  A patient is prescribed Erythromycin 0.75g in a solution of 250mL of 0.9% Normal Saline to be infused over 1 hour.  What is the concentration of Erythromycin in mg/mL?",null,null,null,null,null,null,null,null,null,null,null,null," ",null," ",null," "]
[null,"10.)  Adrenaline is available as 1 in 10000, what is the concentration in mg/mL?",null,null,null,null,null,null,null,null,null,null,null,null," ",null," ",null," "]
[]
[null,null,null,null,null,null,null,null,null,null,null,null,null,null,"Score",null,{"$f":"COUNTIF(Q3:Q12,\"Correct\")","v":0}]

{"sheet":"Pap1Ans","index":2,"n_rows":21,"n_cols":15,"rows_kept":21,"cut":false,"hidden":false,"merged":[[0,3,0,24],[16,1,17,2],[19,1,20,2],[2,12,4,13],[6,12,8,13],[10,12,11,13],[13,12,14,13],[1,1,1,21],[2,1,3,2],[5,1,6,2],[8,1,10,2],[12,1,14,2]]}
[null,null,null,"Drug Calculations Paper 1 - Answers"]
[null,"Remember there are always many ways to work out the answer, these answers are the way I work out the answer.  It is not the \"correct\" way it is just one way.  If you use a different method that is fine, as long as it gives you the correct answer.  You should find the method that suits you and stick to it."]
[null,"Question 1:",null,"Prescription = 110mg b.d.",null,null,null,null,null,null,null,null,"Question 7:",null,"Prescription = 0.5L = 500mL"]
[null,null,null,"Stock = 55mg",null,null,null,null,null,null,null,null,null,null,"Time = 3hours"]
[]
[null,"Question 2:",null,"Prescription = 95mg t.d.s."]
[null,null,null,"Total amount given will be 95 x 3 = 285mg = 0.285g",null,null,null,null,null,null,null,null,"Question 8:",null,"Prescription = 250mL"]
[null,null,null,null,null,null,null,null,null,null,null,null,null,null,"Time = 3hours"]
[null,"Question 3:",null,"Prescription = 1.7mg/kg",null,null,null,null,null,null,null,null,null,null,"Drop factor = 15drops/mL"]
[null,null,null,"Patient weight = 78kg"]
[null,null,null,"Total amount to give = 78 x 1.7 = 132.6mg",null,null,null,null,null,null,null,null,"Question 9:",null,"Solution is 0.75g in 250mL"]
[null,null,null,null,null,null,null,null,null,null,null,null,null,null,"That is the same as 750mg/250mL  = 3mg/mL"]
[null,"Question 4:",null,"Prescription = 80mcg/kg/day"]
[null,null,null,"Patient wieght = 65kg",null,null,null,null,null,null,null,null,"Question 10:",null,"A solution od 1 in 10000 means 1g in 10000mL"]
[null,null,null,"Daily dose = 65 = 80 = 5200micrograms",null,null,null,null,null,null,null,null,null,null,"This is the same as 1000mg/10000mL  = 1mg/10mL  =  0.1mg/mL"]
[]
[null,"Question 5:",null,"Prescription = 280mg"]
[null,null,null,"Stock = 50mg/10mL"]
[]
[null,"Question 6:",null,"Prescription = 45mg"]
[null,null,null,"Stock = 50mg/5mL"]

{"sheet":"Paper 2","index":3,"n_rows":14,"n_cols":19,"rows_kept":14,"cut":false,"hidden":false,"merged":[[11,1,11,12],[0,0,0,1],[0,3,0,23],[2,1,2,12],[3,1,3,12],[4,1,4,12],[5,1,5,12],[6,1,6,12],[7,1,7,12],[8,1,8,12],[9,1,9,12],[10,1,10,12]]}
[null,null,null,"Drug Calculations Practice Paper 2"]
[]
[null,"1.)  Patient A is prescribed Ibuprofen 300mg t.d.s.  Stock strength available is 150mg.  How many tablets will you give the patient every 8 hours?",null,null,null,null,null,null,null,null,null,null,null,null," ",null," ",null," "]
[null,"2.)  A patient is prescribed a daily dose of 48.5 micrograms of Dogoxin.  Expressed in milligrams, how much will the patient receive?",null,null,null,null,null,null,null,null,null,null,null,null," ",null," ",null," "]
[null,"3.)  The drug Dopamine is prescribed at 2.5micrograms/kg/day.  The patient weighs 63kg, what is the total amount of Dopamine that the patient will need?",null,null,null,null,null,null,null,null,null,null,null,null," ",null," ",null," "]
[null,"4.)  A female patient who weighs 65.5kg is prescribed the antibiotic Cidomycin 2.5mg/kg/day i.v.  Calculate the dose in mg of Cidomycin.",null,null,null,null,null,null,null,null,null,null,null,null," ",null," ",null," "]
[null,"5.)  A patient is prescribed Heparin 15,000 units s.c.  Stock strength available is 2,500 units in 0.1mL.  What is the volume in mL that the patient will receive?",null,null,null,null,null,null,null,null,null,null,null,null," ",null," ",null," "]
[null,"6.)  A post-operative patient is prescribed 80mg of Pethidine i.m. every 4 hours.  Stock available is 100mg/2mL.  If the patient has had 3 doses so far, what is the total volume of Pethidine in mL they have had?",null,null,null,null,null,null,null,null,null,null,null,null," ",null," ",null," "]
[null,"7.)  Patient A has severe nausea and vomiting and is prescribed Maxalon high dose 200mg in 450mL 0.9% Normal Saline to infuse over 8 hours via a volumetric pump.  How many mL/hr will you set the pump, give your answer to 2 decimal places.",null,null,null,null,null,null,null,null,null,null,null,null," ",null," ",null," "]
[null,"8.)  Mrs Chung is prescribed 550mL of 5% Dextrose to run over 6 hours using an i.v. infusion set that delivers 20 drops/mL.  To the nearest whole number, how many drops/min will you need to set the infusion at?",null,null,null,null,null,null,null,null,null,null,null,null," ",null," ",null," "]
[null,"9.)  Mr Tai is prescribed Phenytoin 200mg o.d. via a PEG tube.  Stock strength available is 40mg in 8mL.  What is the concentration of Phenytoin in mg/mL that will be delivered?",null,null,null,null,null,null,null,null,null,null,null,null," ",null," ",null," "]
[null,"10.)  Patient X is precribed 12mg of Morphine in 25mL 0.9% Normal Saline via an infusion pump.  What is the concentration of morphine in mg/mL?",null,null,null,null,null,null,null,null,null,null,null,null," ",null," ",null," "]
[]
[null,null,null,null,null,null,null,null,null,null,null,null,null,null,"Score",null,{"$f":"COUNTIF(Q3:Q12,\"Correct\")","v":0}]

{"sheet":"Paper 3","index":4,"n_rows":14,"n_cols":19,"rows_kept":14,"cut":false,"hidden":false,"merged":[[11,1,11,12],[0,0,0,1],[0,3,0,23],[2,1,2,12],[3,1,3,12],[4,1,4,12],[5,1,5,12],[6,1,6,12],[7,1,7,12],[8,1,8,12],[9,1,9,12],[10,1,10,12]]}
[null,null,null,"Drug Calculations Practice Paper 3"]
[]
[null,"1.)  A patient is prescribed Codeine Phosphate 0.036g q.d.s.  Stock strength available is 18mg.  \nHow many tablets will you give in 12 hours?",null,null,null,null,null,null,null,null,null,null,null,null," ",null," ",null," "]
[null,"2.)  A patient is prescribed Metronidazole 350mg t.d.s.  What is the total amount of Metronidazole in grams that the patient will receive in 24 hours?",null,null,null,null,null,null,null,null,null,null,null,null," ",null," ",null," "]
[null,"3.)  An 82kg man is prescribed the antibiotic Cidomycin 5.5mg/kg/day i.v.  Calculate the dose in mg of Cidomycin.",null,null,null,null,null,null,null,null,null,null,null,null," ",null," ",null," "]
[null,"4.)  The drug Amphotericin B is prescribed for a systemic fungal infection for patient X.  The dose prescribed is 1mg/kg/day.  Patient X weighs 83.5kg.  What is the dose of Amphotericin B required for half a day?",null,null,null,null,null,null,null,null,null,null,null,null," ",null," ",null," "]
[null,"5.)  350 micrograms of a drug is prescribed for i.m. injection.  Stock solution is 500micrograms in 2mL.  How many mL will you need to administer?",null,null,null,null,null,null,null,null,null,null,null,null," ",null," ",null," "]
[null,"6.)  An acutely ill patient is precribed Hartmann's solution, 1L via a volumetric pump to be infused at a rate of 250mL/hr.  What is the volume of fluid in mL that is remaining after 1.5 hours?",null,null,null,null,null,null,null,null,null,null,null,null," ",null," ",null," "]
[null,"7.)  A 120mL bag of 0.9% Normal Saline with 500mg of Vancomycin needs to be infused over 30 minutes via a volumetric pump.  What rate will you set the pump at?",null,null,null,null,null,null,null,null,null,null,null,null," ",null," ",null," "]
[null,"8.)  Mrs Q is prescribed 1L of 5% Dextrose to run over 7 hours using an i.v. infusion set that delivers 20 drops/mL.  To the nearest whole number, how many drops/min will you need to set the infusion at?",null,null,null,null,null,null,null,null,null,null,null,null," ",null," ",null," "]
[null,"9.)  Patient A is prescribed 1g of Amoxicillin.  Stock dose available is 300mg per vial to be reconstituted in 5mL of water.  What is the concentration in mg/mL of Amoxicillin?",null,null,null,null,null,null,null,null,null,null,null,null," ",null," ",null," "]
[null,"10.)  Adrenaline is available as 10 in 100,000.  What is trhe concentration?",null,null,null,null,null,null,null,null,null,null,null,null," ",null," ",null," "]
[]
[null,null,null,null,null,null,null,null,null,null,null,null,null,null,"Score",null,{"$f":"COUNTIF(Q3:Q12,\"Correct\")","v":0}]

{"sheet":"Paper 4","index":5,"n_rows":14,"n_cols":19,"rows_kept":14,"cut":false,"hidden":false,"merged":[[11,1,11,12],[0,0,0,1],[0,3,0,23],[2,1,2,12],[3,1,3,12],[4,1,4,12],[5,1,5,12],[6,1,6,12],[7,1,7,12],[8,1,8,12],[9,1,9,12],[10,1,10,12]]}
[null,null,null,"Drug Calculations Practice Paper 4"]
[]
[null,"1.) A 60 year old woman with angina is prescribed 135mg of Verapamil t.d.s.  The stock strength available is 90mg.  How many tablets will she need to take for each dose (Express as a decimal)?",null,null,null,null,null,null,null,null,null,null,null,null," ",null," ",null," "]
[null,"2.)  375mg of the drug Augmentin is prescribed t.d.s.  What is the total amount of Augmentin in grams to be given in a day?",null,null,null,null,null,null,null,null,null,null,null,null," ",null," ",null," "]
[null,"3.)  The drug Dopamine is prescribed at 2.5micrograms/kg/day.  Patient A weighs 65kg, what is the total amount of Dopamine that patient A will require?",null,null,null,null,null,null,null,null,null,null,null,null," ",null," ",null," "]
[null,"4.)  A female patient who weighs 65.5kg is prescribed the antibiotic Cidomycin 3mg/kg/day i.v.  Calculate the dose in mg of Cidomycin.",null,null,null,null,null,null,null,null,null,null,null,null," ",null," ",null," "]
[null,"5.)  A patient is prescribed Heparin 10,000 units s.c.  Stock strength available is 4000 units in 0.2mL.  What is the volume in mL that the patient will receive?",null,null,null,null,null,null,null,null,null,null,null,null," ",null," ",null," "]
[null,"6.)  Patient Y is prescribed Furosemide 70mg i.v. to be added to 40mL of Normal Saline 0.9%.  Stock strength available of Furosemide is 20mg/2mL.  How many mL of Furosemide will you need to add to the bag of Normal Saline?",null,null,null,null,null,null,null,null,null,null,null,null," ",null," ",null," "]
[null,"7.)  An acutely ill patient is prescribed Hartmann's solution 1L via a volumetric pump to be infused at 150mL/hr.  What volume of fluid is left after 2.5 hours?",null,null,null,null,null,null,null,null,null,null,null,null," ",null," ",null," "]
[null,"8.)  Mrs Pat is prescribed 450mL of 5% Dextrose to run over 5.5 hours using a volumetric pump.  How many mL/hr will you set the pump?  Give your answer to one decimal place.",null,null,null,null,null,null,null,null,null,null,null,null," ",null," ",null," "]
[null,"9.)  Mr Chow is prescribed 450mL of 5% Dextrose to run over 5 hours using an i.v. infusion set that delivers 20 drops/mL.  To the nearest whole number, how many drops/min will you need to set the infusion at?",null,null,null,null,null,null,null,null,null,null,null,null," ",null," ",null," "]
[null,"10.)  A patient is prescribed Erythromycin 430mg in a solution of 100mL 0.9% Normal Saline to be infused over 1 hour.  What is the concentration of Erythromycin in mg/mL?",null,null,null,null,null,null,null,null,null,null,null,null," ",null," ",null," "]
[]
[null,null,null,null,null,null,null,null,null,null,null,null,null,null,"Score",null,{"$f":"COUNTIF(Q3:Q12,\"Correct\")","v":0}]

{"sheet":"Paper 5","index":6,"n_rows":14,"n_cols":19,"rows_kept":14,"cut":false,"hidden":false,"merged":[[11,1,11,12],[0,0,0,1],[0,3,0,23],[2,1,2,12],[3,1,3,12],[4,1,4,12],[5,1,5,12],[6,1,6,12],[7,1,7,12],[8,1,8,12],[9,1,9,12],[10,1,10,12]]}
[null,null,null,"Drug Calculations Practice Paper 5"]
[]
[null,"1.)  A patient is prescribed Flucloxacillin 400mg q.d.s.  Stock strength available is 200mg capsules.  What is the total number of tablets she will be required to take in 24 hours?",null,null,null,null,null,null,null,null,null,null,null,null," ",null," ",null," "]
[null,"2.)  575mg of the drug Augmentin is prescribed t.d.s.  What is the total amount of Augmentin in grams to be given in a day?",null,null,null,null,null,null,null,null,null,null,null,null," ",null," ",null," "]
[null,"3.)  The drug Dopamine is prescribed at 0.2mg/kg/day.  The patient weighs 72.5kg, what is the total amount of dopamine that the patient will need?",null,null,null,null,null,null,null,null,null,null,null,null," ",null," ",null," "]
[null,"4.)  The chemotherapy drug Chloambucil is prescribed daily at 125micrograms/kg/day.  The patient weighs 68kg, what is the total amount of Chlorambucil that the patient will receive?",null,null,null,null,null,null,null,null,null,null,null,null," ",null," ",null," "]
[null,"5.)  A patient is prescribed the antibiotic Cidomycin 350mg i.v.  Stock strength available is 120mg/3mL to be added to 50mL or Normal Saline 0.9%.  How many mL of Cidomycin will you need to add to the bag of Normal Saline?",null,null,null,null,null,null,null,null,null,null,null,null," ",null," ",null," "]
[null,"6.)  A patient is prescribed i.v. Teicoplanin 750mg b.d. for a bone infection.  Stock available is 200mg per vial which needs to be reconstituted with 3mL of water for injection.  What will need to be drawn up for one dose?",null,null,null,null,null,null,null,null,null,null,null,null," ",null," ",null," "]
[null,"7.)  Mr Tin is prescribed 700mL of 5% Dextrose in 0.9% Normal Saline to run over 6 hours using a volumetric pump.  How many mL/hr will you need to set the pump?  Give your answer to one decimal place.",null,null,null,null,null,null,null,null,null,null,null,null," ",null," ",null," "]
[null,"8.)  Mr Young is prescribed 450mL of 5% Dextrose to run over 4 hours using an i.v. infusion set that delivers 20drops/mL.  To the nearest whole number, how many drops/min will you need to set the infusion at?",null,null,null,null,null,null,null,null,null,null,null,null," ",null," ",null," "]
[null,"9.)  A patient has been prescribed 1.4g of Benzylpenicillin i.v.  Stock strength available is 650mg per vial which needs to be reconstituted with 10mL of sterile water for injections.  What is the final concentration in mg/mL of Benzylpenicillin?",null,null,null,null,null,null,null,null,null,null,null,null," ",null," ",null," "]
[null,"10.)  A post-operative patient is receiving 12mg Morphine in 50mL 0.9% Normal Saline via an infusion pump.  What is the concentration of Morphine in mg/mL?",null,null,null,null,null,null,null,null,null,null,null,null," ",null," ",null," "]
[]
[null,null,null,null,null,null,null,null,null,null,null,null,null,null,"Score",null,{"$f":"COUNTIF(Q3:Q12,\"Correct\")","v":0}]

{"sheet":"Paper 6","index":7,"n_rows":14,"n_cols":19,"rows_kept":14,"cut":false,"hidden":false,"merged":[[11,1,11,12],[0,0,0,1],[0,3,0,23],[2,1,2,12],[3,1,3,12],[4,1,4,12],[5,1,5,12],[6,1,6,12],[7,1,7,12],[8,1,8,12],[9,1,9,12],[10,1,10,12]]}
[null,null,null,"Drug Calculations Practice Paper 6"]
[]
[null,"1.)  An intravenous infusion of Trimethoprin 100mg is ordered.  The stock available is 20mg/mL in 5mL ampoules.  How many ampoules are required?",null,null,null,null,null,null,null,null,null,null,null,null," ",null," ",null," "]
[null,"2.)  The prescription asks for 15mg of oral morphine, Oramorph.  Stock vials are 30mg/5mL.  What volume of Oramorph is wasted after drawing up the drug?  Give your answer to 1 decimal place.",null,null,null,null,null,null,null,null,null,null,null,null," ",null," ",null," "]
[null,"3.)  The patient is written up for Ibuprofen 1.2g daily the three divided doses.  Stock tablets are 200mg, how many tablets are required for one dose?",null,null,null,null,null,null,null,null,null,null,null,null," ",null," ",null," "]
[null,"4.)  50mL fluid is to be given to a patient over 20 minutes.  What is the rate in mL/hr that the infusion should run at?",null,null,null,null,null,null,null,null,null,null,null,null," ",null," ",null," "]
[null,"5.)  Persantin oral suspension 50mg/5mL is available in 450ml bottles.  If the daily dose for a patient is 300mg, how many days supply is there in one bottle?",null,null,null,null,null,null,null,null,null,null,null,null," ",null," ",null," "]
[null,"6.)   An acutely ill patient is prescribed Hartmann's Solution, 1.5L via a volumetric pump to be infused at a rate of 250mL/hr.  If the infusion was started at 11am what time will it finish?  Give your answer on a 24 hour clock.",null,null,null,null,null,null,null,null,null,null,null,null," ",null," ",null," "]
[null,"7.)  If the concentration of a drug is 2.5mg/mL and your patient is given 3mL, how many mg were prescribed?",null,null,null,null,null,null,null,null,null,null,null,null," ",null," ",null," "]
[null,"8.)  Mrs Armson is prescribed 1.5L of 5% Dextrose to run over 8 hours using an i.v. set that delivers 20drops/mL.  To the nearest whole number, what drop rate will you set the infusion at?",null,null,null,null,null,null,null,null,null,null,null,null," ",null," ",null," "]
[null,"9.)  A patient is prescribed 0.75g of Amoxicillin to be infused over 30mins.  The stock available is 30mg per vial to be reconstituted with 5mL of water.  What rate will you set the infusion at?",null,null,null,null,null,null,null,null,null,null,null,null," ",null," ",null," "]
[null,"10.)  A patient is prescribed 12mg of Morphine in 15mL 0.9% Normal Saline via an infusion pump.  What is the concentration of Morphine?",null,null,null,null,null,null,null,null,null,null,null,null," ",null," ",null," "]
[]
[null,null,null,null,null,null,null,null,null,null,null,null,null,null,"Score",null,{"$f":"COUNTIF(Q3:Q12,\"Correct\")","v":0}]

{"sheet":"Paper 7","index":8,"n_rows":14,"n_cols":19,"rows_kept":14,"cut":false,"hidden":false,"merged":[[11,1,11,12],[0,0,0,1],[0,3,0,23],[2,1,2,12],[3,1,3,12],[4,1,4,12],[5,1,5,12],[6,1,6,12],[7,1,7,12],[8,1,8,12],[9,1,9,12],[10,1,10,12]]}
[null,null,null,"Drug Calculations Practice Paper 7"]
[]
[null,"1.)  450mg of soluble aspirin is required.  Stock on hand is 300mg tablets.  How many tablets should be given?",null,null,null,null,null,null,null,null,null,null,null,null," ",null," ",null," "]
[null,"2.)  A solution contains paracetamol 120mg/5mL.  How many mL will you give the patient if the prescription given is 100mg?  Give your answer to two decimal places.",null,null,null,null,null,null,null,null,null,null,null,null," ",null," ",null," "]
[null,"3.)  A patient is precribed 360mg of penecillin PO.  The strength of the stock syrup is 125mg/5mL.  Calculate the volume to be given to the patient.",null,null,null,null,null,null,null,null,null,null,null,null," ",null," ",null," "]
[null,"4.)  A patient is prescribed benzylpenicillin 1200mg IV.  Stock ampoules contain 1g in 5mL.  What volume should be drawn up for the injection?",null,null,null,null,null,null,null,null,null,null,null,null," ",null," ",null," "]
[null,"5.)  A patient whose weight is 72kg has been prescribed a 5mg/kg/day in three divided doses.  The stock available is 300mg/10mL, calculate the volume to be administered per dose.",null,null,null,null,null,null,null,null,null,null,null,null," ",null," ",null," "]
[null,"6.)  A male patient is receiving one litre of dextrose 5% at a rate of 25mL/hr.  How much of the solution will he have received after 2hours 30mins?",null,null,null,null,null,null,null,null,null,null,null,null," ",null," ",null," "]
[null,"7.)  700mL of Hartmann's solution is to be given over 8 hours.  The IV set being used delivers 20drops/mL.  To the nearest drop, what drip rate is required? ",null,null,null,null,null,null,null,null,null,null,null,null," ",null," ",null," "]
[null,"8.)  A patient is prescribed pethidine 400mg in 500mL of normal saline.  The solution is to be infused via an infusion pump at between 10 and 40mL/hr, depending on the nurse's assessment of the patients pain.  What is the concentration of the pethidine in the saline solution?",null,null,null,null,null,null,null,null,null,null,null,null," ",null," ",null," "]
[null,"9.)  A patient has been prescribed 5mg of 1 in 10000 adrenalin every hour for 3 hours.  What is the total volume of solution the patient will have received after the treatment has completed?",null,null,null,null,null,null,null,null,null,null,null,null," ",null," ",null," "]
[null,"10.)  What is the concentration of a 5 in 150000 solution?  Give your answer to two decimal places.",null,null,null,null,null,null,null,null,null,null,null,null," ",null," ",null," "]
[]
[null,null,null,null,null,null,null,null,null,null,null,null,null,null,"Score",null,{"$f":"COUNTIF(Q3:Q12,\"Correct\")","v":0}]

{"sheet":"Paper 8","index":9,"n_rows":14,"n_cols":19,"rows_kept":14,"cut":false,"hidden":false,"merged":[[11,1,11,12],[0,0,0,1],[0,3,0,23],[2,1,2,12],[3,1,3,12],[4,1,4,12],[5,1,5,12],[6,1,6,12],[7,1,7,12],[8,1,8,12],[9,1,9,12],[10,1,10,12]]}
[null,null,null,"Drug Calculations Practice Paper 8"]
[]
[null,"1.)  How many 30mg tablets of phenobarbitone should be given if phenobarbitone 15mg is prescribed?",null,null,null,null,null,null,null,null,null,null,null,null," ",null," ",null," "]
[null,"2.)  A male patient weighs 78kg, he is prescribed 2.5mg/kg/day of a drug.  How many grams of the drug will he receive in 5 days?",null,null,null,null,null,null,null,null,null,null,null,null," ",null," ",null," "]
[null,"3.)  900mg of benzylpenicillin is to be given orally.  Stock mixture contains 250mg/5mL.  Calculate the volume of mixture to be given to the patient.",null,null,null,null,null,null,null,null,null,null,null,null," ",null," ",null," "]
[null,"4.)  Capreomycin sulphate 900mg has been prescribed to your patient.  The stock apoules available contain 1g in 3mL.  What volume must be drawn up to give to the patient?",null,null,null,null,null,null,null,null,null,null,null,null," ",null," ",null," "]
[null,"5.)  An injection of digoxin 0.225mg is prescribed.  Stock on hand of digoxin is 500micrograms in 2mL.  What volume should be drawn up to give to the patient?",null,null,null,null,null,null,null,null,null,null,null,null," ",null," ",null," "]
[null,"6.)  A patient is to receive one litre of normal saline IV.  The infusion pump is set at 80mL/hr.  If the infusion started at 08:30 what time on the 24 hour clock will it be due to finish?",null,null,null,null,null,null,null,null,null,null,null,null," ",null," ",null," "]
[null,"7.)  150mL of fluid containing 1.5g of flucloxacillin is to infused over 45minutes.  Calculate the required pump setting in mL/hr.",null,null,null,null,null,null,null,null,null,null,null,null," ",null," ",null," "]
[null,"8.)  A unit of autologous blood is to be given to a patient over 4 hours.  The unit of blood contains 480mL and the giving set delivers 15drops/mL.  Calculate the drip rate in drops/min.",null,null,null,null,null,null,null,null,null,null,null,null," ",null," ",null," "]
[null,"9.)  A patient is to be given 1.2litres of fluid IV.  An infusion pump is set at 60mL/hr.  After 12 hours the rate is changed to 96mL/hr.  Calculate the total running time of the infusion.",null,null,null,null,null,null,null,null,null,null,null,null," ",null," ",null," "]
[null,"10.)  A post operative patient is to be given a PCA infusion of fentanyl 350micrograms in 35mL of normal saline.  What is the concentration of fentanyl in mg/mL?",null,null,null,null,null,null,null,null,null,null,null,null," ",null," ",null," "]
[]
[null,null,null,null,null,null,null,null,null,null,null,null,null,null,"Score",null,{"$f":"COUNTIF(Q3:Q12,\"Correct\")","v":0}]

{"sheet":"Paper 9","index":10,"n_rows":14,"n_cols":19,"rows_kept":14,"cut":false,"hidden":false,"merged":[[11,1,11,12],[0,0,0,1],[0,3,0,23],[2,1,2,12],[3,1,3,12],[4,1,4,12],[5,1,5,12],[6,1,6,12],[7,1,7,12],[8,1,8,12],[9,1,9,12],[10,1,10,12]]}
[null,null,null,"Drug Calculations Practice Paper 9"]
[]
[null,"1.)  A patient is prescribed 0.8g of Ibuprofen t.d.s.  If the stock tablets are 400mg, how many tablets will you give the patient per day?",null,null,null,null,null,null,null,null,null,null,null,null," ",null," ",null," "]
[null,"2.)  A patient whose weight is 69.6kg has a prescription of 3.5mg/kg/day to be administered in 3 divided doses.  How much will the patient have had after two doses?",null,null,null,null,null,null,null,null,null,null,null,null," ",null," ",null," "]
[null,"3.)  A prescription of 4.5micrograms/kg/qds has been given to a male patient whose weight is 82.5kg.  How many mg will the patient receive in a day?  Round your answer to 2 decimal places.",null,null,null,null,null,null,null,null,null,null,null,null," ",null," ",null," "]
[null,"4.)  A child is to be given capreomycin sulphate.  The recommended dosage is 20mg/kg/day, 3 doses per day.  Calculate the size of a single dose if the child weighs 24kg",null,null,null,null,null,null,null,null,null,null,null,null," ",null," ",null," "]
[null,"5.)  A young girl is prescribed 700mg of sulfadiazine, to be taken orally.  The stock mixture contains 500mg/5mL.  How much of the mixture will you give to the patient?",null,null,null,null,null,null,null,null,null,null,null,null," ",null," ",null," "]
[null,"6.)  A vial of amoxicillin 500mg is reconstituted with WFI to give a concentration of 200mg/mL.  Calculate the volume of this solution to be drawn up for injection if the prescription is for 90mg.",null,null,null,null,null,null,null,null,null,null,null,null," ",null," ",null," "]
[null,"7.)  800ml of fluid is to be given to a patient IV.  The fluid is run at 70mL/hr for the first 5 hours then the rate is reduced to 60mL/hr.  Calulate the total time taken to give the 800mL.",null,null,null,null,null,null,null,null,null,null,null,null," ",null," ",null," "]
[null,"8.)  A patient needs 30mg of 1 in 10000 solution of adrenalin over 5 hours.  At what rate will you set the pump?",null,null,null,null,null,null,null,null,null,null,null,null," ",null," ",null," "]
[null,"9.)  A patient is prescribed 670mL of 5% Dextrose to run over 7 hours using an i.v. infusion set that delivers 20 drops/mL.  To the nearest whole number, how many drops/min will you need to set the infusion at?",null,null,null,null,null,null,null,null,null,null,null,null," ",null," ",null," "]
[null,"10.)  A post-operative patient is receiving 15mg Morphine in 50mL 0.9% Normal Saline via an infusion pump.  What is the concentration of Morphine in mg/mL?",null,null,null,null,null,null,null,null,null,null,null,null," ",null," ",null," "]
[]
[null,null,null,null,null,null,null,null,null,null,null,null,null,null,"Score",null,{"$f":"COUNTIF(Q3:Q12,\"Correct\")","v":0}]

{"sheet":"Paper 10","index":11,"n_rows":14,"n_cols":19,"rows_kept":14,"cut":false,"hidden":false,"merged":[[11,1,11,12],[0,0,0,1],[0,3,0,23],[2,1,2,12],[3,1,3,12],[4,1,4,12],[5,1,5,12],[6,1,6,12],[7,1,7,12],[8,1,8,12],[9,1,9,12],[10,1,10,12]]}
[null,null,null,"Drug Calculations Practice Paper 10"]
[]
[null,"1.)  Patient A is prescribed Ibuprofen 225mg t.d.s.  Stock strength available is 150mg.  How many tablets will you give the patient every 8 hours?",null,null,null,null,null,null,null,null,null,null,null,null," ",null," ",null," "]
[null,"2.)  575mg of the drug Augmentin is prescribed t.d.s.  How many grams of Augmentin will be given in a day?  Give your answer to two decimal places.",null,null,null,null,null,null,null,null,null,null,null,null," ",null," ",null," "]
[null,"3.)  The drug Dopamine is prescribed at 2.5micrograms/kg/day.  Patient A weighs 87kg, what is the total amount of Dopamine that patient A will require?",null,null,null,null,null,null,null,null,null,null,null,null," ",null," ",null," "]
[null,"4.)  A patient is prescribed benzylpenicillin 1400mg IV.  Stock ampoules contain 1g in 5mL.  What volume should be drawn up for the injection?",null,null,null,null,null,null,null,null,null,null,null,null," ",null," ",null," "]
[null,"5.)  An injection of digoxin 0.125mg is prescribed.  Stock on hand of digoxin is 500micrograms in 2mL.  What volume should be drawn up to give to the patient?",null,null,null,null,null,null,null,null,null,null,null,null," ",null," ",null," "]
[null,"6.)  A post-operative patient is prescribed 60mg of Pethidine i.m. every 4 hours.  Stock available is 100mg/2mL.  If the patient has had 4 doses so far, what is the total volume of Pethidine in mL they have had?",null,null,null,null,null,null,null,null,null,null,null,null," ",null," ",null," "]
[null,"7.)  A 120mL bag of 0.9% Normal Saline with 500mg of Vancomycin needs to be infused over 40 minutes via a volumetric pump.  What rate will you set the pump at?",null,null,null,null,null,null,null,null,null,null,null,null," ",null," ",null," "]
[null,"8.)  A patient is prescribed pethidine 400mg in 500mL of normal saline.  The solution is to be infused via an infusion pump at between 10 and 40mg/hr depending on the nurse's assessment of the patient's pain.  How many milligrams of pethidine will the patient receive hourly if the pump is run at 15mL/hr?",null,null,null,null,null,null,null,null,null,null,null,null," ",null," ",null," "]
[null,"9.)  A patient is prescribed Erythromycin 0.5g in a solution of 200mL of 0.9% Normal Saline to be infused over 1 hour.  What is the concentration of Erythromycin in mg/mL?",null,null,null,null,null,null,null,null,null,null,null,null," ",null," ",null," "]
[null,"10.)  A patient is prescribed Erythromycin 430mg in a solution of 100mL 0.9% Normal Saline to be infused over 1 hour.  What is the concentration of Erythromycin?",null,null,null,null,null,null,null,null,null,null,null,null," ",null," ",null," "]
[]
[null,null,null,null,null,null,null,null,null,null,null,null,null,null,"Score",null,{"$f":"COUNTIF(Q3:Q12,\"Correct\")","v":0}]

{"sheet":"Paper 11","index":12,"n_rows":14,"n_cols":17,"rows_kept":14,"cut":false,"hidden":false,"merged":[[11,1,11,12],[0,0,0,1],[0,3,0,23],[2,1,2,12],[3,1,3,12],[4,1,4,12],[5,1,5,12],[6,1,6,12],[7,1,7,12],[8,1,8,12],[9,1,9,12],[10,1,10,12]]}
[null,null,null,"Drug Calculations Practice Paper 11"]
[]
[]
[]
[]
[]
[]
[]
[]
[]
[]
[]
[]
[null,null,null,null,null,null,null,null,null,null,null,null,null,null,"Score",null,{"$f":"COUNTIF(Q3:Q12,\"Correct\")","v":0}]

{"sheet":"Paper 12","index":13,"n_rows":14,"n_cols":17,"rows_kept":14,"cut":false,"hidden":false,"merged":[[11,1,11,12],[0,0,0,1],[0,3,0,23],[2,1,2,12],[3,1,3,12],[4,1,4,12],[5,1,5,12],[6,1,6,12],[7,1,7,12],[8,1,8,12],[9,1,9,12],[10,1,10,12]]}
[null,null,null,"Drug Calculations Practice Paper 12"]
[]
[]
[]
[]
[]
[]
[]
[]
[]
[]
[]
[]
[null,null,null,null,null,null,null,null,null,null,null,null,null,null,"Score",null,{"$f":"COUNTIF(Q3:Q12,\"Correct\")","v":0}]

{"sheet":"Paper 13","index":14,"n_rows":14,"n_cols":17,"rows_kept":14,"cut":false,"hidden":false,"merged":[[11,1,11,12],[0,0,0,1],[0,3,0,23],[2,1,2,12],[3,1,3,12],[4,1,4,12],[5,1,5,12],[6,1,6,12],[7,1,7,12],[8,1,8,12],[9,1,9,12],[10,1,10,12]]}
[null,null,null,"Drug Calculations Practice Paper13"]
[]
[]
[]
[]
[]
[]
[]
[]
[]
[]
[]
[]
[null,null,null,null,null,null,null,null,null,null,null,null,null,null,"Score",null,{"$f":"COUNTIF(Q3:Q12,\"Correct\")","v":0}]

{"sheet":"Paper 14","index":15,"n_rows":14,"n_cols":17,"rows_kept":14,"cut":false,"hidden":false,"merged":[[11,1,11,12],[0,0,0,1],[0,3,0,23],[2,1,2,12],[3,1,3,12],[4,1,4,12],[5,1,5,12],[6,1,6,12],[7,1,7,12],[8,1,8,12],[9,1,9,12],[10,1,10,12]]}
[null,null,null,"Drug Calculations Practice Paper 14"]
[]
[]
[]
[]
[]
[]
[]
[]
[null,"8.)  A patient is prescribed pethidine 400mg in 500mL of normal saline.  The solution is to be infused via an infusion pump at between 10 and 40mL/hr depending on the nurse's assessment of the patient's pain.  What rate should the pump be set at to deliver 20mg/hr?  Give your answer to the nearsest whole number."]
[]
[]
[]
[null,null,null,null,null,null,null,null,null,null,null,null,null,null,"Score",null,{"$f":"COUNTIF(Q3:Q12,\"Correct\")","v":0}]

{"sheet":"Paper 15","index":16,"n_rows":14,"n_cols":17,"rows_kept":14,"cut":false,"hidden":false,"merged":[[11,1,11,12],[0,0,0,1],[0,3,0,23],[2,1,2,12],[3,1,3,12],[4,1,4,12],[5,1,5,12],[6,1,6,12],[7,1,7,12],[8,1,8,12],[9,1,9,12],[10,1,10,12]]}
[null,null,null,"Drug Calculations Practice Paper 15"]
[]
[]
[]
[]
[]
[]
[]
[]
[]
[]
[]
[]
[null,null,null,null,null,null,null,null,null,null,null,null,null,null,"Score",null,{"$f":"COUNTIF(Q3:Q12,\"Correct\")","v":0}]

{"sheet":"Paper 16","index":17,"n_rows":14,"n_cols":17,"rows_kept":14,"cut":false,"hidden":false,"merged":[[11,1,11,12],[0,0,0,1],[0,3,0,23],[2,1,2,12],[3,1,3,12],[4,1,4,12],[5,1,5,12],[6,1,6,12],[7,1,7,12],[8,1,8,12],[9,1,9,12],[10,1,10,12]]}
[null,null,null,"Drug Calculations Practice Paper 16"]
[]
[]
[]
[]
[]
[]
[]
[]
[]
[]
[]
[]
[null,null,null,null,null,null,null,null,null,null,null,null,null,null,"Score",null,{"$f":"COUNTIF(Q3:Q12,\"Correct\")","v":0}]

{"sheet":"Paper 17","index":18,"n_rows":14,"n_cols":17,"rows_kept":14,"cut":false,"hidden":false,"merged":[[11,1,11,12],[0,0,0,1],[0,3,0,23],[2,1,2,12],[3,1,3,12],[4,1,4,12],[5,1,5,12],[6,1,6,12],[7,1,7,12],[8,1,8,12],[9,1,9,12],[10,1,10,12]]}
[null,null,null,"Drug Calculations Practice Paper 17"]
[]
[]
[]
[]
[]
[]
[]
[]
[]
[]
[]
[]
[null,null,null,null,null,null,null,null,null,null,null,null,null,null,"Score",null,{"$f":"COUNTIF(Q3:Q12,\"Correct\")","v":0}]

{"sheet":"Paper 18","index":19,"n_rows":14,"n_cols":17,"rows_kept":14,"cut":false,"hidden":false,"merged":[[11,1,11,12],[0,0,0,1],[0,3,0,23],[2,1,2,12],[3,1,3,12],[4,1,4,12],[5,1,5,12],[6,1,6,12],[7,1,7,12],[8,1,8,12],[9,1,9,12],[10,1,10,12]]}
[null,null,null,"Drug Calculations Practice Paper 18"]
[]
[]
[]
[]
[]
[]
[]
[]
[]
[]
[]
[]
[null,null,null,null,null,null,null,null,null,null,null,null,null,null,"Score",null,{"$f":"COUNTIF(Q3:Q12,\"Correct\")","v":0}]

{"sheet":"Paper 19","index":20,"n_rows":14,"n_cols":17,"rows_kept":14,"cut":false,"hidden":false,"merged":[[11,1,11,12],[0,0,0,1],[0,3,0,23],[2,1,2,12],[3,1,3,12],[4,1,4,12],[5,1,5,12],[6,1,6,12],[7,1,7,12],[8,1,8,12],[9,1,9,12],[10,1,10,12]]}
[null,null,null,"Drug Calculations Practice Paper 19"]
[]
[]
[]
[]
[]
[]
[]
[]
[]
[]
[]
[]
[null,null,null,null,null,null,null,null,null,null,null,null,null,null,"Score",null,{"$f":"COUNTIF(Q3:Q12,\"Correct\")","v":0}]

{"sheet":"Paper 20","index":21,"n_rows":14,"n_cols":17,"rows_kept":14,"cut":false,"hidden":false,"merged":[[11,1,11,12],[0,0,0,1],[0,3,0,23],[2,1,2,12],[3,1,3,12],[4,1,4,12],[5,1,5,12],[6,1,6,12],[7,1,7,12],[8,1,8,12],[9,1,9,12],[10,1,10,12]]}
[null,null,null,"Drug Calculations Practice Paper 20"]
[]
[]
[]
[]
[]
[]
[]
[]
[]
[]
[]
[]
[null,null,null,null,null,null,null,null,null,null,null,null,null,null,"Score",null,{"$f":"COUNTIF(Q3:Q12,\"Correct\")","v":0}]

{"sheet":"Pap2Ans","index":22,"n_rows":21,"n_cols":18,"rows_kept":21,"cut":false,"hidden":false,"merged":[[12,1,14,2],[13,12,14,13],[16,1,17,2],[19,1,20,2],[0,3,0,24],[1,1,1,21],[2,1,3,2],[2,12,4,13],[5,1,6,2],[6,12,8,13],[8,1,10,2],[10,12,11,13]]}
[null,null,null,"Drug Calculations Paper 2 - Answers"]
[null,"Remember there are always many ways to work out the answer, these answers are the way I work out the answer.  It is not the \"correct\" way it is just one way.  If you use a different method that is fine, as long as it gives you the correct answer.  You should find the method that suits you and stick to it."]
[null,"Question 1:",null,"Prescription = 300mg t.d.s",null,null,null,null,"t.d.s.is every 8 hours",null,null,null,"Question 7:",null,"Volume prescribed = 450mL"]
[null,null,null,"Stock = 150mg",null,null,null,null,"So answer is 2Tablets",null,null,null,null,null,"Time = 8 hours"]
[]
[null,"Question 2:",null,"48.5micrograms ÷ 1000 = 0.0485mg"]
[null,null,null,null,null,null,null,null,null,null,null,null,"Question 8:",null,"Prescription = 550mL"]
[null,null,null,null,null,null,null,null,null,null,null,null,null,null,"Time = 6 hours"]
[null,"Question 3:",null,"Prescription is 2.5micrograms/kg/day",null,null,null,"2.5 x 63 = 157.5micrograms",null,null,null,null,null,null,"Drop factor = 20"]
[null,null,null,"Patient weight 63kg"]
[null,null,null,null,null,null,null,null,null,null,null,null,"Question 9:",null,"Stock is 40mg in 8mL",null,null,"40 ÷ 8 = 5mg/mL"]
[]
[null,"Question 4:",null,"Prescription = 2.5mg/kg/day",null,null,null,"2.5 x 65.5 = 163.75mg"]
[null,null,null,"Weight = 65.5kg",null,null,null,null,null,null,null,null,"Question 10:",null,"Solution is 12mg in 25mL",null,null,"12 ÷ 25 = 0.48mg/mL"]
[]
[]
[null,"Question 5:",null,"Prescription = 15,000units"]
[null,null,null,"Stock = 2500 units/0.1mL"]
[]
[null,"Question 6:",null,"Prescription = 80mg"]
[null,null,null,"Stock = 100mg/2mL"]

{"sheet":"Pap3Ans","index":23,"n_rows":21,"n_cols":15,"rows_kept":21,"cut":false,"hidden":false,"merged":[[12,1,14,2],[13,12,14,13],[16,1,17,2],[19,1,20,2],[0,3,0,24],[1,1,1,21],[2,1,3,2],[2,12,4,13],[5,1,6,2],[6,12,8,13],[8,1,10,2],[10,12,11,13]]}
[null,null,null,"Drug Calculations Paper 3 - Answers"]
[null,"Remember there are always many ways to work out the answer, these answers are the way I work out the answer.  It is not the \"correct\" way it is just one way.  If you use a different method that is fine, as long as it gives you the correct answer.  You should find the method that suits you and stick to it."]
[null,"Question 1:",null,"Prescription = 0.036g = 36mg",null,null," q.d.s.",null,null,null,null,null,"Question 7:",null,"Prescription = 120mL"]
[null,null,null,"Stock = 18mg",null,null,null,null,null,null,null,null,null,null,"Time = 30mins = 0.5hr"]
[]
[null,"Question 2:",null,"Prescription = 350mg t.d.s = 350 x 3 = 1050mg = 1.05g"]
[null,null,null,null,null,null,null,null,null,null,null,null,"Question 8:",null,"Prescription = 1L"]
[null,null,null,null,null,null,null,null,null,null,null,null,null,null,"Time = 7hours"]
[null,"Question 3:",null,"Prescription = 5.5mg/kg/day",null,null," 82 x 5.5 = 451mg",null,null,null,null,null,null,null,"Drop factor = 20drops/mL"]
[null,null,null,"Weight = 82kg"]
[null,null,null,null,null,null,null,null,null,null,null,null,"Question 9:",null,"Prescription = 1g"]
[null,null,null,null,null,null,null,null,null,null,null,null,null,null,"Stock = 300mg/5mL"]
[null,"Question 4:",null,"Prescription = 1mg/kg/day"]
[null,null,null,"Weight = 83.5kg",null,null,null,null,null,null,null,null,"Question 10:",null,"10 in 100000 = "]
[]
[]
[null,"Question 5:",null,"Prescription = 350micrograms"]
[null,null,null,"Stock = 500micrograms/2mL"]
[]
[null,"Question 6:",null,"Prescription = 1L",null,"1.5 x 250 = 375mL given  1000 - 375 = 625mL to give."]
[null,null,null,"Rate = 250mL/hr"]

{"sheet":"Pap4Ans","index":24,"n_rows":21,"n_cols":17,"rows_kept":21,"cut":false,"hidden":false,"merged":[[12,1,14,2],[16,1,17,2],[19,1,20,2],[0,3,0,24],[1,1,1,21],[2,1,3,2],[2,12,4,13],[5,1,6,2],[6,12,8,13],[8,1,10,2],[10,12,12,13],[14,12,15,13]]}
[null,null,null,"Drug Calculations Paper 4 - Answers"]
[null,"Remember there are always many ways to work out the answer, these answers are the way I work out the answer.  It is not the \"correct\" way it is just one way.  If you use a different method that is fine, as long as it gives you the correct answer.  You should find the method that suits you and stick to it."]
[null,"Question 1:",null,"Prescription = 135mg",null,null,null,null,null,null,null,null,"Question 7:",null,"Prescription = 1L",null,"2.5 x 150 = 375mL given"]
[null,null,null,"Stock = 90mg",null,null,null,null,null,null,null,null,null,null,"Rate = 150mL/hr"]
[null,null,null,null,null,null,null,null,null,null,null,null,null,null,null,null,"1000mL - 375mL = 625mL"]
[null,"Question 2:",null,"Prescription = 375mg t.d.s.  375 x 3 = 1125mg  = 1.125g"]
[null,null,null,null,null,null,null,null,null,null,null,null,"Question 8:",null,"Prescription = 450mL"]
[null,null,null,null,null,null,null,null,null,null,null,null,null,null,"Time = 5.5hours"]
[null,"Question 3:",null,"Prescription = 2.5micrograms/kg/day"]
[null,null,null,"Weight = 65kg",null,null,null,"65 x 2.5 = 162.5micrograms"]
[null,null,null,null,null,null,null,null,null,null,null,null,"Question 9:",null,"Prescription = 450mL"]
[null,null,null,null,null,null,null,null,null,null,null,null,null,null,"Time = 5hours"]
[null,"Question 4:",null,"Prescription = 3mg/kg/day",null,null,null,null,null,null,null,null,null,null,"Drop factor = 20drops/mL"]
[null,null,null,"Weight = 65.5kg",null,null,"65.5 x 3 = 196.5mg"]
[null,null,null,null,null,null,null,null,null,null,null,null,"Question 10:",null,"Solution = 430mg/100mL"]
[]
[null,"Question 5:",null,"Prescription = 10000units"]
[null,null,null,"Stock = 4000units/.0.2mL"]
[]
[null,"Question 6:",null,"Prescription = 70mg"]
[null,null,null,"Stock = 20mg/2mL"]

{"sheet":"Pap5Ans","index":25,"n_rows":21,"n_cols":15,"rows_kept":21,"cut":false,"hidden":false,"merged":[[12,1,14,2],[13,12,14,13],[16,1,17,2],[19,1,20,2],[0,3,0,24],[1,1,1,21],[2,1,3,2],[2,12,4,13],[5,1,6,2],[6,12,8,13],[8,1,10,2],[10,12,11,13]]}
[null,null,null,"Drug Calculations Paper 5 - Answers"]
[null,"Remember there are always many ways to work out the answer, these answers are the way I work out the answer.  It is not the \"correct\" way it is just one way.  If you use a different method that is fine, as long as it gives you the correct answer.  You should find the method that suits you and stick to it."]
[null,"Question 1:",null,"Prescription = 400mg q.d.s.",null,null,null,null,null,null,null,null,"Question 7:",null,"Prescription = 700mL"]
[null,null,null,"Stock = 200mg",null,null,null,null,null,null,null,null,null,null,"Time = 6 hours"]
[]
[null,"Question 2:",null,"Prescription = 575mg t.d.s.   575 x 3 = 1725mg  =  1.725g"]
[null,null,null,null,null,null,null,null,null,null,null,null,"Question 8:",null,"Prescription = 450mL"]
[null,null,null,null,null,null,null,null,null,null,null,null,null,null,"Time = 4 hours"]
[null,"Question 3:",null,"Prescription = 0.2mg/kg/day",null,null,null,null,null,null,null,null,null,null,"Drop factor = 20drops/mL"]
[null,null,null,"Weight = 72.5kg",null,null,"72.5 x 0.2 = 14.5mg"]
[null,null,null,null,null,null,null,null,null,null,null,null,"Question 9:",null,"Stock = 650mg/10mL"]
[]
[null,"Question 4:",null,"Prescription = 125micrograms/kg/day"]
[null,null,null,"Weight = 68kg",null,null,null,"125 x 68 = 8500micrograms",null,null,null,null,"Question 10:",null,"Solution = 12mg/50mL"]
[]
[]
[null,"Question 5:",null,"Prescription = 350mg"]
[null,null,null,"Stock = 120mg/3mL"]
[]
[null,"Question 6:",null,"Prescription = 750mg b.d."]
[null,null,null,"Stock = 200mg/3mL"]

{"sheet":"Pap6Ans","index":26,"n_rows":21,"n_cols":15,"rows_kept":21,"cut":false,"hidden":false,"merged":[[12,1,14,2],[13,12,14,13],[16,1,17,2],[19,1,20,2],[0,3,0,24],[1,1,1,21],[2,1,3,2],[2,12,4,13],[5,1,6,2],[6,12,8,13],[8,1,10,2],[10,12,11,13]]}
[null,null,null,"Drug Calculations Paper 6 - Answers"]
[null,"Remember there are always many ways to work out the answer, these answers are the way I work out the answer.  It is not the \"correct\" way it is just one way.  If you use a different method that is fine, as long as it gives you the correct answer.  You should find the method that suits you and stick to it."]
[null,"Question 1:",null,"Prescription = 100mg",null,null,null,null,null,null,null,null,"Question 7:",null,"Patient given 3mL"]
[null,null,null,"Stock = 20mg/1mL",null,null,null,null,null,null,null,null,null,null,"Concentration is 2.5mg/mL"]
[]
[null,"Question 2:",null,"Prescription = 15mg"]
[null,null,null,"Stock = 30mg/5mL",null,null,null,null,null,null,null,null,"Question 8:",null,"Prescription = 1500mL"]
[null,null,null,null,null,null,null,null,null,null,null,null,null,null,"Time = 8Hours"]
[null,"Question 3:",null,"Prescription = 1.2g",null,null,null,null,null,null,null,null,null,null,"Drop Factor = 20"]
[null,null,null,"Stock tablets = 200mg"]
[null,null,null,null,null,null,null,null,null,null,null,null,"Question 9:",null,"Prescription = 0.75g"]
[null,null,null,null,null,null,null,null,null,null,null,null,null,null,"Stock = 30mg/5mL"]
[null,"Question 4:",null,"Prescription is 50ml in 20minutes There are three 20minutes in an hour"]
[null,null,null,"so the rate is 3 x 50 = 150mL/hour",null,null,null,null,null,null,null,null,"Question 10:",null,"Solution = 12mg/15mL "]
[]
[]
[null,"Question 5:",null,"Presctiption = 300mg"]
[null,null,null,"Stock = 50mg/5mL"]
[]
[null,"Question 6:",null,"Prescription = 1500mL"]
[null,null,null,"Rate = 250mL/hr"]

{"sheet":"Pap7Ans","index":27,"n_rows":21,"n_cols":15,"rows_kept":21,"cut":false,"hidden":false,"merged":[[12,1,14,2],[13,12,14,13],[16,1,17,2],[19,1,20,2],[0,3,0,24],[1,1,1,21],[2,1,3,2],[2,12,4,13],[5,1,6,2],[6,12,8,13],[8,1,10,2],[10,12,11,13]]}
[null,null,null,"Drug Calculations Paper 7 - Answers"]
[null,"Remember there are always many ways to work out the answer, these answers are the way I work out the answer.  It is not the \"correct\" way it is just one way.  If you use a different method that is fine, as long as it gives you the correct answer.  You should find the method that suits you and stick to it."]
[null,"Question 1:",null,"Prescription = 450mg",null,null,null,null,null,null,null,null,"Question 7:",null,"Prescription = 700mL"]
[null,null,null,"Stock = 300mg",null,null,null,null,null,null,null,null,null,null,"Time = 8 hours"]
[null,null,null,null,null,null,null,null,null,null,null,null,null,null,"Drop factor = 20"]
[null,"Question 2:",null,"Prescription = 100mg"]
[null,null,null,"Stock = 120mg/5mL",null,null,null,null,null,null,null,null,"Question 8:",null,"Solution = 400mg/500mL"]
[]
[null,"Question 3:",null,"prescription = 360mg"]
[null,null,null,"Stock = 125mg/5mL"]
[null,null,null,null,null,null,null,null,null,null,null,null,"Question 9:",null,"Prescription = 5mg x 3"]
[null,null,null,null,null,null,null,null,null,null,null,null,null,null,"Stock = 1 in 10000"]
[null,"Question 4:",null,"Prescription = 1200mg"]
[null,null,null,"Stock = 1g/5mL",null,null,null,null,null,null,null,null,"Question 10:",null,"Solution = 5 in 150000"]
[]
[]
[null,"Question 5:",null,"Prescription = 5mg/kg/day t.d.s."]
[null,null,null,"Weight = 72kg"]
[]
[null,"Question 6:",null,"Rate = 25mL/hr"]
[null,null,null,"Time = 2.5hours"]

{"sheet":"Pap8Ans","index":28,"n_rows":21,"n_cols":20,"rows_kept":21,"cut":false,"hidden":false,"merged":[[12,1,14,2],[15,12,16,13],[16,1,17,2],[19,1,20,2],[0,3,0,24],[1,1,1,21],[2,1,3,2],[2,12,4,13],[5,1,6,2],[6,12,8,13],[8,1,10,2],[10,12,13,13]]}
[null,null,null,"Drug Calculations Paper 8 - Answers"]
[null,"Remember there are always many ways to work out the answer, these answers are the way I work out the answer.  It is not the \"correct\" way it is just one way.  If you use a different method that is fine, as long as it gives you the correct answer.  You should find the method that suits you and stick to it."]
[null,"Question 1:",null,"Prescription = 15mg",null,null,null,null,null,null,null,null,"Question 7:",null,"Prescription = 150mL"]
[null,null,null,"Stock tablets = 30mg",null,null,null,null,null,null,null,null,null,null,"Time = 45mins = 0.75hours"]
[]
[null,"Question 2:",null,"Prescription = 2.5mg/kg/day",null,null,"78 x 2.5 = 195mg per day"]
[null,null,null,"Weight = 78kg",null,null,"195 x 5 = 975mg in 5 days = 0.975g",null,null,null,null,null,"Question 8:",null,"Prescription = 480mL"]
[null,null,null,null,null,null,null,null,null,null,null,null,null,null,"Time = 4hours"]
[null,"Question 3:",null,"Prescription = 900mg",null,null,null,null,null,null,null,null,null,null,"Drop Factor = 15"]
[null,null,null,"Stock = 250mg/5mL"]
[null,null,null,null,null,null,null,null,null,null,null,null,"Question 9:",null,"Prescription = 1.2L",null,null,"60mL x 12 = 720mL",null,"given in 12 hours"]
[null,null,null,null,null,null,null,null,null,null,null,null,null,null,"Rate = 60mL/hr for 12 hours",null,null,"1000 - 720 = 480mL left to give"]
[null,"Question 4:",null,"Prescription = 900mg",null,null,null,null,null,null,null,null,null,null,"Rate = 96mL/hr"]
[null,null,null,"Stock = 1g/3mL = 1000mg/3mL"]
[]
[null,null,null,null,null,null,null,null,null,null,null,null,"Question 10:",null,"Stock = 350mcg/35mL = 0.35mg/35mL "]
[null,"Question 5:",null,"Prescription = 0.225mg = 225mcg"]
[null,null,null,"Stock = 500mcg/2mL"]
[]
[null,"Question 6:",null,"Prescription = 1L = 1000mL"]
[null,null,null,"Rate = 80mL/hr"]

{"sheet":"Pap9Ans","index":29,"n_rows":21,"n_cols":15,"rows_kept":21,"cut":false,"hidden":false,"merged":[[12,1,14,2],[14,12,15,13],[16,1,17,2],[19,1,20,2],[0,3,0,24],[1,1,1,21],[2,1,3,2],[2,12,4,13],[5,1,6,2],[6,12,8,13],[8,1,10,2],[10,12,12,13]]}
[null,null,null,"Drug Calculations Paper 9 - Answers"]
[null,"Remember there are always many ways to work out the answer, these answers are the way I work out the answer.  It is not the \"correct\" way it is just one way.  If you use a different method that is fine, as long as it gives you the correct answer.  You should find the method that suits you and stick to it."]
[null,"Question 1:",null,"Prescription = 0.8g t.d.s.",null,null,null,null,null,null,null,null,"Question 7:",null,"Prescription = 800mL"]
[null,null,null,"Stock = 400mg",null,null,null,null,null,null,null,null,null,null,"Rate = 700mL/hr for 5hrs"]
[null,null,null,null,null,null,null,null,null,null,null,null,null,null,"Rate = 60mL/hr till end"]
[null,"Question 2:",null,"Prescription = 3.5mg/kg/day 3 doses"]
[null,null,null,"Weight = 69.6kg",null,null,null,null,null,null,null,null,"Question 8:",null,"Prescription = 30mg"]
[null,null,null,null,null,null,null,null,null,null,null,null,null,null,"Stock = 1 in 10000 = 1mg/10mL"]
[null,"Question 3:",null,"Prescription = 4.5mcg/kg/qds",null,null,null,null,null,null,null,null,null,null,"Time = 5hrs"]
[null,null,null,"Weight = 82.5kg"]
[null,null,null,null,null,null,null,null,null,null,null,null,"Question 9:",null,"Prescription = 670mg"]
[null,null,null,null,null,null,null,null,null,null,null,null,null,null,"Time = 7hrs"]
[null,"Question 4:",null,"Prescription = 20mg/kg/day 3 doses",null,null,null,"24 x 20 = 480mg",null,null,null,null,null,null,"Drop factor = 20"]
[null,null,null,"Weight = 24kg"]
[null,null,null,null,null,null,null,"480 ÷ 3 = 160mg",null,null,null,null,"Question 10:",null,"Stock = 15mg/50mL"]
[]
[null,"Question 5:",null,"Prescription = 700mg"]
[null,null,null,"Stock = 500mg/5mL"]
[]
[null,"Question 6:",null,"Prescription = 90mg"]
[null,null,null,"Stock= 200mg/mL"]

{"sheet":"Pap10Ans","index":30,"n_rows":21,"n_cols":15,"rows_kept":21,"cut":false,"hidden":false,"merged":[[12,1,14,2],[13,12,14,13],[16,1,17,2],[19,1,20,2],[0,3,0,24],[1,1,1,21],[2,1,3,2],[2,12,4,13],[5,1,6,2],[6,12,8,13],[8,1,10,2],[10,12,11,13]]}
[null,null,null,"Drug Calculations Paper 10 - Answers"]
[null,"Remember there are always many ways to work out the answer, these answers are the way I work out the answer.  It is not the \"correct\" way it is just one way.  If you use a different method that is fine, as long as it gives you the correct answer.  You should find the method that suits you and stick to it."]
[null,"Question 1:",null,"Prescription = 225mg tds",null,null,null,null,null,null,null,null,"Question 7:",null,"Prescription = 120mL"]
[null,null,null,"Stock = 150mg",null,null,null,null,null,null,null,null,null,null,"Time = 40mins"]
[]
[null,"Question 2:",null,"Prescription = 575mg t.d.s.",null,null,"575  x  3 = 1725mg  =  1.72g"]
[null,null,null,null,null,null,null,null,null,null,null,null,"Question 8:",null,"Stock = 400mg/500mL"]
[null,null,null,null,null,null,null,null,null,null,null,null,null,null,"Rate = 15mL/hr"]
[null,"Question 3:",null,"Prescription = 2.5mcg/kg/day"]
[null,null,null,"Weight = 87kg",null,null,"2.5 x 87 = 217.5mcg"]
[null,null,null,null,null,null,null,null,null,null,null,null,"Question 9:",null,"Stock = 0.5g/200mL"]
[]
[null,"Question 4:",null,"Prescription = 1400mg"]
[null,null,null,"Stock = 1g/5mL = 1000mg/5mL",null,null,null,null,null,null,null,null,"Question 10:",null,"Stock = 430mg/100mL"]
[]
[]
[null,"Question 5:",null,"Prescription = 0.125mg"]
[null,null,null,"Stock = 500mcg/2mL"]
[]
[null,"Question 6:",null,"Prescription = 60mg "]
[null,null,null,"Stock = 100mg/2mL"]

{"sheet":"Pap11Ans","index":31,"n_rows":20,"n_cols":13,"rows_kept":20,"cut":false,"hidden":false,"merged":[[12,1,14,2],[13,12,14,13],[16,1,17,2],[19,1,20,2],[0,3,0,24],[1,1,1,21],[2,1,3,2],[2,12,4,13],[5,1,6,2],[6,12,8,13],[8,1,10,2],[10,12,11,13]]}
[null,null,null,"Drug Calculations Paper 11 - Answers"]
[null,"Remember there are always many ways to work out the answer, these answers are the way I work out the answer.  It is not the \"correct\" way it is just one way.  If you use a different method that is fine, as long as it gives you the correct answer.  You should find the method that suits you and stick to it."]
[null,"Question 1:",null,null,null,null,null,null,null,null,null,null,"Question 7:"]
[]
[]
[null,"Question 2:"]
[null,null,null,null,null,null,null,null,null,null,null,null,"Question 8:"]
[]
[null,"Question 3:"]
[]
[null,null,null,null,null,null,null,null,null,null,null,null,"Question 9:"]
[]
[null,"Question 4:"]
[null,null,null,null,null,null,null,null,null,null,null,null,"Question 10:"]
[]
[]
[null,"Question 5:"]
[]
[]
[null,"Question 6:"]

{"sheet":"Pap12Ans","index":32,"n_rows":20,"n_cols":13,"rows_kept":20,"cut":false,"hidden":false,"merged":[[12,1,14,2],[13,12,14,13],[16,1,17,2],[19,1,20,2],[0,3,0,24],[1,1,1,21],[2,1,3,2],[2,12,4,13],[5,1,6,2],[6,12,8,13],[8,1,10,2],[10,12,11,13]]}
[null,null,null,"Drug Calculations Paper 12 - Answers"]
[null,"Remember there are always many ways to work out the answer, these answers are the way I work out the answer.  It is not the \"correct\" way it is just one way.  If you use a different method that is fine, as long as it gives you the correct answer.  You should find the method that suits you and stick to it."]
[null,"Question 1:",null,null,null,null,null,null,null,null,null,null,"Question 7:"]
[]
[]
[null,"Question 2:"]
[null,null,null,null,null,null,null,null,null,null,null,null,"Question 8:"]
[]
[null,"Question 3:"]
[]
[null,null,null,null,null,null,null,null,null,null,null,null,"Question 9:"]
[]
[null,"Question 4:"]
[null,null,null,null,null,null,null,null,null,null,null,null,"Question 10:"]
[]
[]
[null,"Question 5:"]
[]
[]
[null,"Question 6:"]

{"sheet":"Pap13Ans","index":33,"n_rows":20,"n_cols":13,"rows_kept":20,"cut":false,"hidden":false,"merged":[[12,1,14,2],[13,12,14,13],[16,1,17,2],[19,1,20,2],[0,3,0,24],[1,1,1,21],[2,1,3,2],[2,12,4,13],[5,1,6,2],[6,12,8,13],[8,1,10,2],[10,12,11,13]]}
[null,null,null,"Drug Calculations Paper 13 - Answers"]
[null,"Remember there are always many ways to work out the answer, these answers are the way I work out the answer.  It is not the \"correct\" way it is just one way.  If you use a different method that is fine, as long as it gives you the correct answer.  You should find the method that suits you and stick to it."]
[null,"Question 1:",null,null,null,null,null,null,null,null,null,null,"Question 7:"]
[]
[]
[null,"Question 2:"]
[null,null,null,null,null,null,null,null,null,null,null,null,"Question 8:"]
[]
[null,"Question 3:"]
[]
[null,null,null,null,null,null,null,null,null,null,null,null,"Question 9:"]
[]
[null,"Question 4:"]
[null,null,null,null,null,null,null,null,null,null,null,null,"Question 10:"]
[]
[]
[null,"Question 5:"]
[]
[]
[null,"Question 6:"]

{"sheet":"Pap14Ans","index":34,"n_rows":20,"n_cols":13,"rows_kept":20,"cut":false,"hidden":false,"merged":[[12,1,14,2],[13,12,14,13],[16,1,17,2],[19,1,20,2],[0,3,0,24],[1,1,1,21],[2,1,3,2],[2,12,4,13],[5,1,6,2],[6,12,8,13],[8,1,10,2],[10,12,11,13]]}
[null,null,null,"Drug Calculations Paper 1 - Answers"]
[null,"Remember there are always many ways to work out the answer, these answers are the way I work out the answer.  It is not the \"correct\" way it is just one way.  If you use a different method that is fine, as long as it gives you the correct answer.  You should find the method that suits you and stick to it."]
[null,"Question 1:",null,null,null,null,null,null,null,null,null,null,"Question 7:"]
[]
[]
[null,"Question 2:"]
[null,null,null,null,null,null,null,null,null,null,null,null,"Question 8:"]
[]
[null,"Question 3:"]
[]
[null,null,null,null,null,null,null,null,null,null,null,null,"Question 9:"]
[]
[null,"Question 4:"]
[null,null,null,null,null,null,null,null,null,null,null,null,"Question 10:"]
[]
[]
[null,"Question 5:"]
[]
[]
[null,"Question 6:"]

{"sheet":"Pap15Ans","index":35,"n_rows":20,"n_cols":13,"rows_kept":20,"cut":false,"hidden":false,"merged":[[12,1,14,2],[13,12,14,13],[16,1,17,2],[19,1,20,2],[0,3,0,24],[1,1,1,21],[2,1,3,2],[2,12,4,13],[5,1,6,2],[6,12,8,13],[8,1,10,2],[10,12,11,13]]}
[null,null,null,"Drug Calculations Paper 14 - Answers"]
[null,"Remember there are always many ways to work out the answer, these answers are the way I work out the answer.  It is not the \"correct\" way it is just one way.  If you use a different method that is fine, as long as it gives you the correct answer.  You should find the method that suits you and stick to it."]
[null,"Question 1:",null,null,null,null,null,null,null,null,null,null,"Question 7:"]
[]
[]
[null,"Question 2:"]
[null,null,null,null,null,null,null,null,null,null,null,null,"Question 8:"]
[]
[null,"Question 3:"]
[]
[null,null,null,null,null,null,null,null,null,null,null,null,"Question 9:"]
[]
[null,"Question 4:"]
[null,null,null,null,null,null,null,null,null,null,null,null,"Question 10:"]
[]
[]
[null,"Question 5:"]
[]
[]
[null,"Question 6:"]

{"sheet":"Pap16Ans","index":36,"n_rows":20,"n_cols":13,"rows_kept":20,"cut":false,"hidden":false,"merged":[[12,1,14,2],[13,12,14,13],[16,1,17,2],[19,1,20,2],[0,3,0,24],[1,1,1,21],[2,1,3,2],[2,12,4,13],[5,1,6,2],[6,12,8,13],[8,1,10,2],[10,12,11,13]]}
[null,null,null,"Drug Calculations Paper 16 - Answers"]
[null,"Remember there are always many ways to work out the answer, these answers are the way I work out the answer.  It is not the \"correct\" way it is just one way.  If you use a different method that is fine, as long as it gives you the correct answer.  You should find the method that suits you and stick to it."]
[null,"Question 1:",null,null,null,null,null,null,null,null,null,null,"Question 7:"]
[]
[]
[null,"Question 2:"]
[null,null,null,null,null,null,null,null,null,null,null,null,"Question 8:"]
[]
[null,"Question 3:"]
[]
[null,null,null,null,null,null,null,null,null,null,null,null,"Question 9:"]
[]
[null,"Question 4:"]
[null,null,null,null,null,null,null,null,null,null,null,null,"Question 10:"]
[]
[]
[null,"Question 5:"]
[]
[]
[null,"Question 6:"]

{"sheet":"Pap17Ans","index":37,"n_rows":20,"n_cols":13,"rows_kept":20,"cut":false,"hidden":false,"merged":[[12,1,14,2],[13,12,14,13],[16,1,17,2],[19,1,20,2],[0,3,0,24],[1,1,1,21],[2,1,3,2],[2,12,4,13],[5,1,6,2],[6,12,8,13],[8,1,10,2],[10,12,11,13]]}
[null,null,null,"Drug Calculations Paper 17 - Answers"]
[null,"Remember there are always many ways to work out the answer, these answers are the way I work out the answer.  It is not the \"correct\" way it is just one way.  If you use a different method that is fine, as long as it gives you the correct answer.  You should find the method that suits you and stick to it."]
[null,"Question 1:",null,null,null,null,null,null,null,null,null,null,"Question 7:"]
[]
[]
[null,"Question 2:"]
[null,null,null,null,null,null,null,null,null,null,null,null,"Question 8:"]
[]
[null,"Question 3:"]
[]
[null,null,null,null,null,null,null,null,null,null,null,null,"Question 9:"]
[]
[null,"Question 4:"]
[null,null,null,null,null,null,null,null,null,null,null,null,"Question 10:"]
[]
[]
[null,"Question 5:"]
[]
[]
[null,"Question 6:"]

{"sheet":"Pap18Ans","index":38,"n_rows":20,"n_cols":13,"rows_kept":20,"cut":false,"hidden":false,"merged":[[12,1,14,2],[13,12,14,13],[16,1,17,2],[19,1,20,2],[0,3,0,24],[1,1,1,21],[2,1,3,2],[2,12,4,13],[5,1,6,2],[6,12,8,13],[8,1,10,2],[10,12,11,13]]}
[null,null,null,"Drug Calculations Paper 18 - Answers"]
[null,"Remember there are always many ways to work out the answer, these answers are the way I work out the answer.  It is not the \"correct\" way it is just one way.  If you use a different method that is fine, as long as it gives you the correct answer.  You should find the method that suits you and stick to it."]
[null,"Question 1:",null,null,null,null,null,null,null,null,null,null,"Question 7:"]
[]
[]
[null,"Question 2:"]
[null,null,null,null,null,null,null,null,null,null,null,null,"Question 8:"]
[]
[null,"Question 3:"]
[]
[null,null,null,null,null,null,null,null,null,null,null,null,"Question 9:"]
[]
[null,"Question 4:"]
[null,null,null,null,null,null,null,null,null,null,null,null,"Question 10:"]
[]
[]
[null,"Question 5:"]
[]
[]
[null,"Question 6:"]

{"sheet":"Pap19Ans","index":39,"n_rows":20,"n_cols":13,"rows_kept":20,"cut":false,"hidden":false,"merged":[[12,1,14,2],[13,12,14,13],[16,1,17,2],[19,1,20,2],[0,3,0,24],[1,1,1,21],[2,1,3,2],[2,12,4,13],[5,1,6,2],[6,12,8,13],[8,1,10,2],[10,12,11,13]]}
[null,null,null,"Drug Calculations Paper 19 - Answers"]
[null,"Remember there are always many ways to work out the answer, these answers are the way I work out the answer.  It is not the \"correct\" way it is just one way.  If you use a different method that is fine, as long as it gives you the correct answer.  You should find the method that suits you and stick to it."]
[null,"Question 1:",null,null,null,null,null,null,null,null,null,null,"Question 7:"]
[]
[]
[null,"Question 2:"]
[null,null,null,null,null,null,null,null,null,null,null,null,"Question 8:"]
[]
[null,"Question 3:"]
[]
[null,null,null,null,null,null,null,null,null,null,null,null,"Question 9:"]
[]
[null,"Question 4:"]
[null,null,null,null,null,null,null,null,null,null,null,null,"Question 10:"]
[]
[]
[null,"Question 5:"]
[]
[]
[null,"Question 6:"]

{"sheet":"Pap20Ans","index":40,"n_rows":20,"n_cols":13,"rows_kept":20,"cut":false,"hidden":false,"merged":[[12,1,14,2],[13,12,14,13],[16,1,17,2],[19,1,20,2],[0,3,0,24],[1,1,1,21],[2,1,3,2],[2,12,4,13],[5,1,6,2],[6,12,8,13],[8,1,10,2],[10,12,11,13]]}
[null,null,null,"Drug Calculations Paper 20 - Answers"]
[null,"Remember there are always many ways to work out the answer, these answers are the way I work out the answer.  It is not the \"correct\" way it is just one way.  If you use a different method that is fine, as long as it gives you the correct answer.  You should find the method that suits you and stick to it."]
[null,"Question 1:",null,null,null,null,null,null,null,null,null,null,"Question 7:"]
[]
[]
[null,"Question 2:"]
[null,null,null,null,null,null,null,null,null,null,null,null,"Question 8:"]
[]
[null,"Question 3:"]
[]
[null,null,null,null,null,null,null,null,null,null,null,null,"Question 9:"]
[]
[null,"Question 4:"]
[null,null,null,null,null,null,null,null,null,null,null,null,"Question 10:"]
[]
[]
[null,"Question 5:"]
[]
[]
[null,"Question 6:"]